[Event "Titled Tuesday Blitz May 4 2021"]
[White "Klimkowski, Jan"]
[Black "Pein, Jonathan"]
[WhiteFideId "21856222"]
[BlackFideId "417092"]
[WhiteElo "1903"]
[BlackElo "2167"]
[Result "0-1"]
[Round "06"]
[TimeControl "180+1"]
[Date "2021.05.04"]
[WhiteClock "0:00:05"]
[BlackClock "0:00:06"]

1. e4 {[%clk 0:03:00]}  d6 {[%clk 0:03:00]} 2. Nf3 {[%clk 0:02:59]}  Nf6 {[%clk 0:03:00]} 3. Nc3 {[%clk 0:02:58]}  Nc6 {[%clk 0:03:00]} 4. d4 {[%clk 0:02:58]}  Bg4 {[%clk 0:03:01]} 5. Be2 {[%clk 0:02:56]}  e5 {[%clk 0:03:01]} 6. Be3 {[%clk 0:02:47]}  Bxf3 {[%clk 0:03:01]} 7. Bxf3 {[%clk 0:02:47]}  exd4 {[%clk 0:03:02]} 8. Bxd4 {[%clk 0:02:48]}  Nxd4 {[%clk 0:03:03]} 9. Qxd4 {[%clk 0:02:49]}  c6 {[%clk 0:03:04]} 10. O-O-O {[%clk 0:02:45]}  Qb6 {[%clk 0:03:04]} 11. Rhe1 {[%clk 0:02:17]}  O-O-O {[%clk 0:02:51]} 12. g3 {[%clk 0:02:05]}  Be7 {[%clk 0:02:41]} 13. Bg2 {[%clk 0:02:04]}  Qxd4 {[%clk 0:02:40]} 14. Rxd4 {[%clk 0:02:04]}  Nd7 {[%clk 0:02:31]} 15. f4 {[%clk 0:01:57]}  Rhe8 {[%clk 0:02:24]} 16. Bh3 {[%clk 0:01:56]}  Kc7 {[%clk 0:02:24]} 17. Red1 {[%clk 0:01:55]}  Nc5 {[%clk 0:02:21]} 18. b4 {[%clk 0:01:48]}  Na6 {[%clk 0:02:12]} 19. Rc4 {[%clk 0:01:25]}  Kb8 {[%clk 0:01:45]} 20. b5 {[%clk 0:01:22]}  Nc5 {[%clk 0:01:46]} 21. bxc6 {[%clk 0:01:20]}  bxc6 {[%clk 0:01:46]} 22. Na4 {[%clk 0:01:19]}  Kc7 {[%clk 0:01:09]} 23. Bg2 {[%clk 0:01:10]}  a5 {[%clk 0:00:43]} 24. Nxc5 {[%clk 0:00:39]}  dxc5 {[%clk 0:00:44]} 25. e5 {[%clk 0:00:39]}  Rxd1+ {[%clk 0:00:44]} 26. Kxd1 {[%clk 0:00:40]}  Rd8+ {[%clk 0:00:44]} 27. Ke2 {[%clk 0:00:39]}  Rd4 {[%clk 0:00:45]} 28. Rxd4 {[%clk 0:00:35]}  cxd4 {[%clk 0:00:46]} 29. Kd3 {[%clk 0:00:36]}  Bb4 {[%clk 0:00:17]} 30. Kxd4 {[%clk 0:00:35]}  Be1 {[%clk 0:00:18]} 31. Bf1 {[%clk 0:00:28]}  Bf2+ {[%clk 0:00:17]} 32. Ke4 {[%clk 0:00:29]}  Bg1 {[%clk 0:00:16]} 33. Kf3 {[%clk 0:00:29]}  Kb6 {[%clk 0:00:15]} 34. Bc4 {[%clk 0:00:29]}  f6 {[%clk 0:00:13]} 35. exf6 {[%clk 0:00:19]}  gxf6 {[%clk 0:00:13]} 36. h4 {[%clk 0:00:19]}  Kc5 {[%clk 0:00:12]} 37. Bf7 {[%clk 0:00:19]}  Kd4 {[%clk 0:00:12]} 38. Be8 {[%clk 0:00:17]}  c5 {[%clk 0:00:11]} 39. Kg2 {[%clk 0:00:13]}  Be3 {[%clk 0:00:11]} 40. Kf3 {[%clk 0:00:14]}  Bc1 {[%clk 0:00:10]} 41. Bf7 {[%clk 0:00:13]}  Kc3 {[%clk 0:00:10]} 42. Bb3 {[%clk 0:00:12]}  c4 {[%clk 0:00:10]} 43. Ba4 {[%clk 0:00:12]}  Kb2 {[%clk 0:00:10]} 44. Ke4 {[%clk 0:00:11]}  Kxa2 {[%clk 0:00:08]} 45. Kd5 {[%clk 0:00:11]}  Ka3 {[%clk 0:00:09]} 46. Be8 {[%clk 0:00:10]}  Kb4 {[%clk 0:00:08]} 47. Kd4 {[%clk 0:00:10]}  Bb2+ {[%clk 0:00:08]} 48. Ke3 {[%clk 0:00:10]}  a4 {[%clk 0:00:08]} 49. c3+ {[%clk 0:00:05]}  Bxc3 {[%clk 0:00:07]} 50. Ke2 {[%clk 0:00:05]}  a3 {[%clk 0:00:06]} 0-1


[Site "https://www.chess.com"]

[Event "Titled Tuesday Blitz May 4 2021"]
[White "Kononenko, Dmitry"]
[Black "Kovacs, Klara"]
[WhiteFideId "14113538"]
[BlackFideId "733210"]
[WhiteElo "2289"]
[BlackElo "2120"]
[Result "1-0"]
[Round "06"]
[TimeControl "180+1"]
[Date "2021.05.04"]
[WhiteClock "0:00:12"]
[BlackClock "0:00:13"]

1. d4 {[%clk 0:02:57]}  Nf6 {[%clk 0:02:50]} 2. c4 {[%clk 0:02:56]}  e6 {[%clk 0:02:51]} 3. g3 {[%clk 0:02:56]}  d5 {[%clk 0:02:43]} 4. Nf3 {[%clk 0:02:56]}  Be7 {[%clk 0:02:44]} 5. Bg2 {[%clk 0:02:56]}  O-O {[%clk 0:02:43]} 6. O-O {[%clk 0:02:56]}  dxc4 {[%clk 0:02:40]} 7. Qc2 {[%clk 0:02:56]}  a6 {[%clk 0:02:39]} 8. a4 {[%clk 0:02:56]}  Bd7 {[%clk 0:02:38]} 9. Qxc4 {[%clk 0:02:56]}  Bc6 {[%clk 0:02:33]} 10. Bf4 {[%clk 0:02:56]}  Nbd7 {[%clk 0:02:32]} 11. a5 {[%clk 0:02:53]}  Bd5 {[%clk 0:02:30]} 12. Qxc7 {[%clk 0:02:50]}  Qxc7 {[%clk 0:02:29]} 13. Bxc7 {[%clk 0:02:51]}  Rfc8 {[%clk 0:02:28]} 14. Bf4 {[%clk 0:02:51]}  Rc2 {[%clk 0:02:28]} 15. Nc3 {[%clk 0:02:50]}  Rxb2 {[%clk 0:02:27]} 16. Rfb1 {[%clk 0:02:47]}  Rxb1+ {[%clk 0:02:25]} 17. Rxb1 {[%clk 0:02:46]}  Bc6 {[%clk 0:02:02]} 18. Ne5 {[%clk 0:02:37]}  Bxg2 {[%clk 0:02:01]} 19. Kxg2 {[%clk 0:02:37]}  Nxe5 {[%clk 0:01:54]} 20. Bxe5 {[%clk 0:02:12]}  Bf8 {[%clk 0:01:35]} 21. Rxb7 {[%clk 0:02:08]}  Rc8 {[%clk 0:01:35]} 22. Na4 {[%clk 0:01:46]}  Rc2 {[%clk 0:01:22]} 23. Nb6 {[%clk 0:01:29]}  Ne4 {[%clk 0:01:04]} 24. Rb8 {[%clk 0:01:12]}  f6 {[%clk 0:01:01]} 25. Nd7 {[%clk 0:01:07]}  Kf7 {[%clk 0:01:01]} 26. Rxf8+ {[%clk 0:00:51]}  Ke7 {[%clk 0:01:00]} 27. Rg8 {[%clk 0:00:52]}  Kxd7 {[%clk 0:00:47]} 28. Rxg7+ {[%clk 0:00:50]}  Ke8 {[%clk 0:00:46]} 29. Bf4 {[%clk 0:00:36]}  Rxe2 {[%clk 0:00:45]} 30. Kf3 {[%clk 0:00:28]}  Nc3 {[%clk 0:00:39]} 31. Rc7 {[%clk 0:00:18]}  Rc2 {[%clk 0:00:38]} 32. Rc6 {[%clk 0:00:14]}  Kd7 {[%clk 0:00:29]} 33. Rxa6 {[%clk 0:00:14]}  Nb5 {[%clk 0:00:29]} 34. Rb6 {[%clk 0:00:13]}  Nxd4+ {[%clk 0:00:29]} 35. Kg2 {[%clk 0:00:13]}  e5 {[%clk 0:00:28]} 36. Be3 {[%clk 0:00:13]}  Nc6 {[%clk 0:00:27]} 37. a6 {[%clk 0:00:13]}  Ra2 {[%clk 0:00:27]} 38. Rb7+ {[%clk 0:00:13]}  Kd6 {[%clk 0:00:27]} 39. a7 {[%clk 0:00:13]}  f5 {[%clk 0:00:26]} 40. Rxh7 {[%clk 0:00:13]}  e4 {[%clk 0:00:25]} 41. h4 {[%clk 0:00:13]}  Ke6 {[%clk 0:00:23]} 42. h5 {[%clk 0:00:13]}  Ne5 {[%clk 0:00:15]} 43. Rh8 {[%clk 0:00:12]}  Ng4 {[%clk 0:00:13]} 44. a8=Q {[%clk 0:00:12]}  Nxe3+ {[%clk 0:00:13]} 45. Kh3 {[%clk 0:00:12]} 1-0


[Site "https://www.chess.com"]

[Event "Titled Tuesday Blitz May 4 2021"]
[White "Kopjonkin, Kirill"]
[Black "Petrova, Irina"]
[WhiteFideId "24140090"]
[BlackFideId "14124122"]
[WhiteElo "2224"]
[BlackElo "2022"]
[Result "1-0"]
[Round "06"]
[TimeControl "180+1"]
[Date "2021.05.04"]
[WhiteClock "0:00:18"]
[BlackClock "0:00:01"]

1. e4 {[%clk 0:03:00]}  d6 {[%clk 0:03:00]} 2. d4 {[%clk 0:02:59]}  Nf6 {[%clk 0:03:01]} 3. Nc3 {[%clk 0:02:59]}  e5 {[%clk 0:02:59]} 4. Nge2 {[%clk 0:02:58]}  Nc6 {[%clk 0:02:58]} 5. f3 {[%clk 0:02:57]}  Be7 {[%clk 0:02:50]} 6. Be3 {[%clk 0:02:57]}  O-O {[%clk 0:02:49]} 7. Qd2 {[%clk 0:02:58]}  d5 {[%clk 0:02:49]} 8. exd5 {[%clk 0:02:42]}  Nxd5 {[%clk 0:02:41]} 9. Nxd5 {[%clk 0:02:42]}  Qxd5 {[%clk 0:02:42]} 10. dxe5 {[%clk 0:02:37]}  Qxe5 {[%clk 0:02:18]} 11. O-O-O {[%clk 0:02:37]}  Be6 {[%clk 0:02:14]} 12. Nd4 {[%clk 0:02:29]}  Bf6 {[%clk 0:01:59]} 13. c3 {[%clk 0:02:24]}  Nxd4 {[%clk 0:01:54]} 14. Bxd4 {[%clk 0:02:22]}  Qg5 {[%clk 0:01:48]} 15. Qxg5 {[%clk 0:02:17]}  Bxg5+ {[%clk 0:01:48]} 16. Kb1 {[%clk 0:02:18]}  b6 {[%clk 0:01:41]} 17. Bd3 {[%clk 0:02:16]}  a5 {[%clk 0:01:29]} 18. Be5 {[%clk 0:02:14]}  c5 {[%clk 0:01:15]} 19. f4 {[%clk 0:02:14]}  Be7 {[%clk 0:01:14]} 20. f5 {[%clk 0:02:09]}  Bd5 {[%clk 0:01:10]} 21. Bc2 {[%clk 0:02:01]}  Bc6 {[%clk 0:01:05]} 22. Rhf1 {[%clk 0:01:57]}  a4 {[%clk 0:01:02]} 23. f6 {[%clk 0:01:51]}  Bxf6 {[%clk 0:00:56]} 24. Bxf6 {[%clk 0:01:52]}  gxf6 {[%clk 0:00:57]} 25. Rxf6 {[%clk 0:01:52]}  Rfc8 {[%clk 0:00:52]} 26. Rd3 {[%clk 0:01:29]}  Kg7 {[%clk 0:00:49]} 27. Rf4 {[%clk 0:01:26]}  Re8 {[%clk 0:00:36]} 28. Rg3+ {[%clk 0:01:18]}  Kf8 {[%clk 0:00:35]} 29. Rf1 {[%clk 0:01:11]}  Re2 {[%clk 0:00:29]} 30. Bxh7 {[%clk 0:01:12]}  Rxg2 {[%clk 0:00:28]} 31. Rxg2 {[%clk 0:01:12]}  Bxg2 {[%clk 0:00:29]} 32. Rf2 {[%clk 0:01:13]}  Bd5 {[%clk 0:00:28]} 33. a3 {[%clk 0:01:01]}  Kg7 {[%clk 0:00:26]} 34. Bd3 {[%clk 0:01:01]}  Re8 {[%clk 0:00:24]} 35. Kc2 {[%clk 0:01:01]}  Bb3+ {[%clk 0:00:24]} 36. Kd2 {[%clk 0:01:01]}  Rd8 {[%clk 0:00:23]} 37. Ke3 {[%clk 0:01:00]}  Re8+ {[%clk 0:00:22]} 38. Kd2 {[%clk 0:01:01]}  Rd8 {[%clk 0:00:22]} 39. Ke3 {[%clk 0:01:00]}  Re8+ {[%clk 0:00:23]} 40. Kf4 {[%clk 0:01:01]}  Rd8 {[%clk 0:00:20]} 41. Be4 {[%clk 0:00:50]}  Rd1 {[%clk 0:00:17]} 42. h4 {[%clk 0:00:50]}  Rg1 {[%clk 0:00:12]} 43. Ke5 {[%clk 0:00:48]}  Rd1 {[%clk 0:00:07]} 44. Rg2+ {[%clk 0:00:45]}  Kh6 {[%clk 0:00:07]} 45. Rf2 {[%clk 0:00:28]}  Re1 {[%clk 0:00:06]} 46. Kf4 {[%clk 0:00:20]}  Kh5 {[%clk 0:00:07]} 47. Bf3+ {[%clk 0:00:18]}  Kg6 {[%clk 0:00:06]} 48. Rd2 {[%clk 0:00:17]}  Kh6 {[%clk 0:00:05]} 49. Rd6+ {[%clk 0:00:17]}  Re6 {[%clk 0:00:04]} 50. Rd7 {[%clk 0:00:18]}  Rf6+ {[%clk 0:00:04]} 51. Kg3 {[%clk 0:00:18]}  Rg6+ {[%clk 0:00:04]} 52. Kf2 {[%clk 0:00:18]}  Rf6 {[%clk 0:00:04]} 53. Ke3 {[%clk 0:00:18]}  Re6+ {[%clk 0:00:04]} 54. Kd2 {[%clk 0:00:18]}  Rf6 {[%clk 0:00:04]} 55. Be2 {[%clk 0:00:17]}  Kg6 {[%clk 0:00:02]} 56. h5+ {[%clk 0:00:17]}  Kh6 {[%clk 0:00:02]} 57. Rb7 {[%clk 0:00:18]}  Rd6+ {[%clk 0:00:02]} 58. Ke3 {[%clk 0:00:17]}  Re6+ {[%clk 0:00:02]} 59. Kf2 {[%clk 0:00:18]}  Rf6+ {[%clk 0:00:02]} 60. Kg3 {[%clk 0:00:18]}  Re6 {[%clk 0:00:01]} 61. Bf3 {[%clk 0:00:18]} 1-0


[Site "https://www.chess.com"]

[Event "Titled Tuesday Blitz May 4 2021"]
[White "Korchmar, Vasiliy"]
[Black "Ivanov, Mike"]
[WhiteFideId "24131750"]
[BlackFideId "2613158"]
[WhiteElo "2370"]
[BlackElo "2197"]
[Result "1-0"]
[Round "06"]
[TimeControl "180+1"]
[Date "2021.05.04"]
[WhiteClock "0:01:10"]
[BlackClock "0:00:04"]

1. d4 {[%clk 0:03:00]}  Nf6 {[%clk 0:02:59]} 2. Nf3 {[%clk 0:03:01]}  e6 {[%clk 0:02:59]} 3. Bf4 {[%clk 0:03:01]}  b6 {[%clk 0:02:57]} 4. e3 {[%clk 0:02:59]}  Bb7 {[%clk 0:02:57]} 5. Nbd2 {[%clk 0:02:59]}  g6 {[%clk 0:02:58]} 6. Be2 {[%clk 0:02:56]}  Bg7 {[%clk 0:02:58]} 7. O-O {[%clk 0:02:57]}  O-O {[%clk 0:02:58]} 8. h3 {[%clk 0:02:57]}  d6 {[%clk 0:02:58]} 9. Bh2 {[%clk 0:02:56]}  Nbd7 {[%clk 0:02:58]} 10. a4 {[%clk 0:02:55]}  a6 {[%clk 0:02:58]} 11. c3 {[%clk 0:02:54]}  Qe7 {[%clk 0:02:57]} 12. a5 {[%clk 0:02:43]}  b5 {[%clk 0:02:57]} 13. c4 {[%clk 0:02:44]}  bxc4 {[%clk 0:02:51]} 14. Nxc4 {[%clk 0:02:43]}  Ne4 {[%clk 0:02:49]} 15. Qa4 {[%clk 0:02:32]}  Ndf6 {[%clk 0:02:30]} 16. Rac1 {[%clk 0:02:27]}  Nd5 {[%clk 0:02:29]} 17. Nfd2 {[%clk 0:02:17]}  Nxd2 {[%clk 0:02:13]} 18. Nxd2 {[%clk 0:02:18]}  c5 {[%clk 0:02:13]} 19. dxc5 {[%clk 0:02:07]}  dxc5 {[%clk 0:02:14]} 20. Ne4 {[%clk 0:02:08]}  Bxb2 {[%clk 0:01:16]} 21. Rxc5 {[%clk 0:02:08]}  Rfd8 {[%clk 0:00:52]} 22. Rb1 {[%clk 0:01:34]}  Bg7 {[%clk 0:00:27]} 23. Bc7 {[%clk 0:01:34]}  Rd7 {[%clk 0:00:17]} 24. Rxb7 {[%clk 0:01:29]}  Nxc7 {[%clk 0:00:17]} 25. Qxd7 {[%clk 0:01:13]}  Qxd7 {[%clk 0:00:17]} 26. Rcxc7 {[%clk 0:01:14]}  Qd5 {[%clk 0:00:16]} 27. Rxf7 {[%clk 0:01:14]}  Bh8 {[%clk 0:00:09]} 28. Bf3 {[%clk 0:01:12]}  Rc8 {[%clk 0:00:08]} 29. Nf6+ {[%clk 0:01:09]}  Bxf6 {[%clk 0:00:07]} 30. Bxd5 {[%clk 0:01:09]}  Rc1+ {[%clk 0:00:05]} 31. Kh2 {[%clk 0:01:10]}  Be5+ {[%clk 0:00:04]} 32. f4 {[%clk 0:01:10]}  exd5 {[%clk 0:00:04]} 33. fxe5 {[%clk 0:01:10]} 1-0


[Site "https://www.chess.com"]

[Event "Titled Tuesday Blitz May 4 2021"]
[White "Korkmaz, Necmettin"]
[Black "Alice, Mateus Felizardo Viageiro"]
[WhiteFideId "6303285"]
[BlackFideId "14800047"]
[WhiteElo "2094"]
[BlackElo "2189"]
[Result "1/2-1/2"]
[Round "06"]
[TimeControl "180+1"]
[Date "2021.05.04"]
[WhiteClock "0:00:18"]
[BlackClock "0:00:04"]

1. e4 {[%clk 0:02:54]}  c5 {[%clk 0:02:58]} 2. Nc3 {[%clk 0:02:52]}  d6 {[%clk 0:02:56]} 3. f4 {[%clk 0:02:52]}  Nc6 {[%clk 0:02:52]} 4. Nf3 {[%clk 0:02:52]}  g6 {[%clk 0:02:50]} 5. Bc4 {[%clk 0:02:52]}  Bg7 {[%clk 0:02:44]} 6. O-O {[%clk 0:02:51]}  e6 {[%clk 0:02:44]} 7. d3 {[%clk 0:02:52]}  Nge7 {[%clk 0:02:43]} 8. Qe1 {[%clk 0:02:52]}  a6 {[%clk 0:02:37]} 9. f5 {[%clk 0:02:51]}  b5 {[%clk 0:02:31]} 10. Bb3 {[%clk 0:02:51]}  Na5 {[%clk 0:02:29]} 11. fxe6 {[%clk 0:02:49]}  fxe6 {[%clk 0:02:26]} 12. Ng5 {[%clk 0:02:49]}  Nxb3 {[%clk 0:02:21]} 13. axb3 {[%clk 0:02:40]}  Qb6 {[%clk 0:02:05]} 14. Qg3 {[%clk 0:02:16]}  Nc6 {[%clk 0:01:52]} 15. Nxh7 {[%clk 0:02:14]}  Ne5 {[%clk 0:01:48]} 16. Nf6+ {[%clk 0:02:09]}  Bxf6 {[%clk 0:01:47]} 17. Rxf6 {[%clk 0:02:10]}  Bd7 {[%clk 0:01:48]} 18. Bf4 {[%clk 0:02:04]}  O-O-O {[%clk 0:01:43]} 19. Bxe5 {[%clk 0:02:04]}  dxe5 {[%clk 0:01:40]} 20. Qxe5 {[%clk 0:02:03]}  Rh5 {[%clk 0:01:33]} 21. Qg3 {[%clk 0:02:00]}  Rdh8 {[%clk 0:01:32]} 22. h3 {[%clk 0:01:59]}  g5 {[%clk 0:01:32]} 23. e5 {[%clk 0:01:52]}  c4+ {[%clk 0:01:28]} 24. Qf2 {[%clk 0:01:21]}  Qb7 {[%clk 0:01:23]} 25. Ne4 {[%clk 0:01:17]}  Qc6 {[%clk 0:01:19]} 26. Qa7 {[%clk 0:01:12]}  g4 {[%clk 0:01:17]} 27. Nd6+ {[%clk 0:01:12]}  Kd8 {[%clk 0:01:15]} 28. Nf7+ {[%clk 0:01:10]}  Ke7 {[%clk 0:01:14]} 29. Nxh8 {[%clk 0:01:10]}  Rxh8 {[%clk 0:01:11]} 30. Qf2 {[%clk 0:01:05]}  gxh3 {[%clk 0:01:09]} 31. Rf7+ {[%clk 0:01:00]}  Ke8 {[%clk 0:01:08]} 32. Rf1 {[%clk 0:00:59]}  Qxg2+ {[%clk 0:00:58]} 33. Qxg2 {[%clk 0:00:59]}  hxg2 {[%clk 0:00:58]} 34. R1f2 {[%clk 0:00:59]}  Bc6 {[%clk 0:00:58]} 35. Rxg2 {[%clk 0:00:38]}  Kxf7 {[%clk 0:00:55]} 36. Rf2+ {[%clk 0:00:38]}  Ke7 {[%clk 0:00:56]} 37. Rf6 {[%clk 0:00:36]}  Rh1+ {[%clk 0:00:50]} 38. Kf2 {[%clk 0:00:36]}  Rh2+ {[%clk 0:00:51]} 39. Ke3 {[%clk 0:00:36]}  Rxc2 {[%clk 0:00:51]} 40. bxc4 {[%clk 0:00:36]}  bxc4 {[%clk 0:00:51]} 41. Rh6 {[%clk 0:00:31]}  cxd3 {[%clk 0:00:49]} 42. Kxd3 {[%clk 0:00:31]}  Rxb2 {[%clk 0:00:49]} 43. Rh7+ {[%clk 0:00:31]}  Kd8 {[%clk 0:00:49]} 44. Ra7 {[%clk 0:00:31]}  Bb5+ {[%clk 0:00:49]} 45. Kd4 {[%clk 0:00:31]}  Rd2+ {[%clk 0:00:48]} 46. Ke4 {[%clk 0:00:29]}  Rd5 {[%clk 0:00:48]} 47. Kf4 {[%clk 0:00:28]}  Kc8 {[%clk 0:00:43]} 48. Re7 {[%clk 0:00:26]}  Bd7 {[%clk 0:00:42]} 49. Rh7 {[%clk 0:00:26]}  a5 {[%clk 0:00:42]} 50. Rh3 {[%clk 0:00:23]}  a4 {[%clk 0:00:42]} 51. Re3 {[%clk 0:00:23]}  Kc7 {[%clk 0:00:42]} 52. Kg5 {[%clk 0:00:23]}  Kb6 {[%clk 0:00:42]} 53. Kf6 {[%clk 0:00:23]}  Ka5 {[%clk 0:00:42]} 54. Ke7 {[%clk 0:00:23]}  Kb4 {[%clk 0:00:40]} 55. Re4+ {[%clk 0:00:24]}  Kc5 {[%clk 0:00:40]} 56. Re3 {[%clk 0:00:21]}  Kd4 {[%clk 0:00:36]} 57. Re1 {[%clk 0:00:21]}  Kc3 {[%clk 0:00:34]} 58. Rc1+ {[%clk 0:00:20]}  Kb2 {[%clk 0:00:34]} 59. Rc7 {[%clk 0:00:20]}  a3 {[%clk 0:00:26]} 60. Rb7+ {[%clk 0:00:19]}  Kc1 {[%clk 0:00:19]} 61. Ra7 {[%clk 0:00:18]}  Kb2 {[%clk 0:00:18]} 62. Rb7+ {[%clk 0:00:18]}  Bb5 {[%clk 0:00:15]} 63. Kxe6 {[%clk 0:00:17]}  Rc5 {[%clk 0:00:14]} 64. Kd6 {[%clk 0:00:17]}  Rc6+ {[%clk 0:00:14]} 65. Kd5 {[%clk 0:00:18]}  Rc3 {[%clk 0:00:08]} 66. Rxb5+ {[%clk 0:00:18]}  Rb3 {[%clk 0:00:06]} 67. Ra5 {[%clk 0:00:18]}  a2 {[%clk 0:00:06]} 68. Rxa2+ {[%clk 0:00:18]}  Kxa2 {[%clk 0:00:06]} 69. e6 {[%clk 0:00:18]}  Rd3+ {[%clk 0:00:06]} 70. Kc6 {[%clk 0:00:18]}  Kb3 {[%clk 0:00:05]} 71. e7 {[%clk 0:00:18]}  Re3 {[%clk 0:00:05]} 72. Kd7 {[%clk 0:00:19]}  Rxe7+ {[%clk 0:00:04]} 73. Kxe7 {[%clk 0:00:18]} 1/2-1/2


[Site "https://www.chess.com"]

[Event "Titled Tuesday Blitz May 4 2021"]
[White "Kostiukov, Alexandr"]
[Black "Camlar, Arda"]
[WhiteFideId "14108100"]
[BlackFideId "44576692"]
[WhiteElo "2240"]
[BlackElo "2007"]
[Result "0-1"]
[Round "06"]
[TimeControl "180+1"]
[Date "2021.05.04"]
[WhiteClock "0:00:12"]
[BlackClock "0:00:11"]

1. g3 {[%clk 0:03:00]}  Nf6 {[%clk 0:02:59]} 2. Bg2 {[%clk 0:03:01]}  c5 {[%clk 0:02:59]} 3. c4 {[%clk 0:03:01]}  Nc6 {[%clk 0:03:00]} 4. Nf3 {[%clk 0:03:01]}  g6 {[%clk 0:03:00]} 5. O-O {[%clk 0:03:02]}  Bg7 {[%clk 0:03:00]} 6. d4 {[%clk 0:03:02]}  cxd4 {[%clk 0:02:59]} 7. Nxd4 {[%clk 0:03:02]}  O-O {[%clk 0:02:59]} 8. c5 {[%clk 0:03:02]}  Nd5 {[%clk 0:02:40]} 9. Nb3 {[%clk 0:02:40]}  Nc7 {[%clk 0:02:38]} 10. Nc3 {[%clk 0:02:36]}  Ne6 {[%clk 0:02:37]} 11. e4 {[%clk 0:02:27]}  b6 {[%clk 0:02:17]} 12. Be3 {[%clk 0:02:11]}  Ba6 {[%clk 0:02:14]} 13. Re1 {[%clk 0:02:07]}  bxc5 {[%clk 0:02:14]} 14. Nxc5 {[%clk 0:02:00]}  Nxc5 {[%clk 0:02:14]} 15. Bxc5 {[%clk 0:02:01]}  Rb8 {[%clk 0:02:14]} 16. Ba3 {[%clk 0:01:43]}  Qa5 {[%clk 0:02:13]} 17. Qxd7 {[%clk 0:01:30]}  Ne5 {[%clk 0:01:51]} 18. Qa4 {[%clk 0:01:20]}  Qxa4 {[%clk 0:01:45]} 19. Nxa4 {[%clk 0:01:21]}  Nd3 {[%clk 0:01:39]} 20. Re2 {[%clk 0:00:48]}  Rfc8 {[%clk 0:01:21]} 21. Rd2 {[%clk 0:00:45]}  Bh6 {[%clk 0:01:17]} 22. f4 {[%clk 0:00:43]}  Nb4 {[%clk 0:00:54]} 23. Rd7 {[%clk 0:00:36]}  Bb5 {[%clk 0:00:45]} 24. Rxa7 {[%clk 0:00:31]}  Nc6 {[%clk 0:00:44]} 25. Rd7 {[%clk 0:00:13]}  Bxa4 {[%clk 0:00:43]} 26. e5 {[%clk 0:00:14]}  e6 {[%clk 0:00:30]} 27. Rc1 {[%clk 0:00:11]}  Bb5 {[%clk 0:00:23]} 28. Rd6 {[%clk 0:00:06]}  Na5 {[%clk 0:00:14]} 29. Rxc8+ {[%clk 0:00:07]}  Rxc8 {[%clk 0:00:15]} 30. h4 {[%clk 0:00:08]}  Nc4 {[%clk 0:00:14]} 31. Rd3 {[%clk 0:00:06]}  Nxa3 {[%clk 0:00:13]} 32. Rxa3 {[%clk 0:00:07]}  Bf8 {[%clk 0:00:13]} 33. Ra8 {[%clk 0:00:06]}  Rc2 {[%clk 0:00:12]} 34. a4 {[%clk 0:00:06]}  Bc4 {[%clk 0:00:12]} 35. b4 {[%clk 0:00:06]}  Kg7 {[%clk 0:00:11]} 36. b5 {[%clk 0:00:06]}  Bc5+ {[%clk 0:00:12]} 37. Kh1 {[%clk 0:00:05]}  Rxg2 {[%clk 0:00:12]} 38. Kxg2 {[%clk 0:00:05]}  Bd5+ {[%clk 0:00:12]} 39. Kh3 {[%clk 0:00:06]}  Bxa8 {[%clk 0:00:13]} 40. a5 {[%clk 0:00:06]}  Bb4 {[%clk 0:00:12]} 41. a6 {[%clk 0:00:06]}  Bc5 {[%clk 0:00:12]} 42. Kh2 {[%clk 0:00:04]}  Bb6 {[%clk 0:00:13]} 43. g4 {[%clk 0:00:04]}  Bd5 {[%clk 0:00:13]} 44. Kg3 {[%clk 0:00:04]}  Bc4 {[%clk 0:00:13]} 45. f5 {[%clk 0:00:04]}  Bxb5 {[%clk 0:00:13]} 46. f6+ {[%clk 0:00:05]}  Kf8 {[%clk 0:00:13]} 47. h5 {[%clk 0:00:05]}  Bxa6 {[%clk 0:00:13]} 48. hxg6 {[%clk 0:00:06]}  hxg6 {[%clk 0:00:14]} 49. Kf4 {[%clk 0:00:06]}  Ke8 {[%clk 0:00:14]} 50. Kg5 {[%clk 0:00:07]}  Bd4 {[%clk 0:00:14]} 51. Kh6 {[%clk 0:00:08]}  Bxe5 {[%clk 0:00:14]} 52. Kg7 {[%clk 0:00:08]}  Bf4 {[%clk 0:00:12]} 53. Kh7 {[%clk 0:00:07]}  e5 {[%clk 0:00:12]} 54. Kg7 {[%clk 0:00:08]}  e4 {[%clk 0:00:12]} 55. g5 {[%clk 0:00:09]}  e3 {[%clk 0:00:13]} 56. Kh6 {[%clk 0:00:09]}  e2 {[%clk 0:00:13]} 57. Kg7 {[%clk 0:00:10]}  e1=Q {[%clk 0:00:12]} 58. Kh6 {[%clk 0:00:11]}  Bxg5+ {[%clk 0:00:12]} 59. Kg7 {[%clk 0:00:12]}  Bxf6+ {[%clk 0:00:12]} 60. Kxf6 {[%clk 0:00:12]}  g5 {[%clk 0:00:12]} 61. Kxg5 {[%clk 0:00:12]}  Qe5+ {[%clk 0:00:12]} 62. Kh6 {[%clk 0:00:11]}  Qg3 {[%clk 0:00:11]} 63. Kh7 {[%clk 0:00:11]}  Kf8 {[%clk 0:00:11]} 64. Kh8 {[%clk 0:00:12]}  Qg8# {[%clk 0:00:11]} 0-1


[Site "https://www.chess.com"]

[Event "Titled Tuesday Blitz May 4 2021"]
[White "Kovalev, Vladislav"]
[Black "Shapiro, David"]
[WhiteFideId "13504398"]
[BlackFideId "24133523"]
[WhiteElo "2573"]
[BlackElo "2261"]
[Result "1-0"]
[Round "06"]
[TimeControl "180+1"]
[Date "2021.05.04"]
[WhiteClock "0:02:29"]
[BlackClock "0:01:53"]

1. e4 {[%clk 0:03:00]}  c6 {[%clk 0:02:59]} 2. Nf3 {[%clk 0:03:00]}  d5 {[%clk 0:03:00]} 3. Nc3 {[%clk 0:03:01]}  Bg4 {[%clk 0:02:57]} 4. h3 {[%clk 0:03:00]}  Bh5 {[%clk 0:02:58]} 5. exd5 {[%clk 0:02:58]}  cxd5 {[%clk 0:02:59]} 6. g4 {[%clk 0:02:57]}  Bg6 {[%clk 0:02:58]} 7. d4 {[%clk 0:02:56]}  Nc6 {[%clk 0:02:59]} 8. Ne5 {[%clk 0:02:56]}  e6 {[%clk 0:02:55]} 9. h4 {[%clk 0:02:56]}  f6 {[%clk 0:02:17]} 10. h5 {[%clk 0:02:41]}  Bxc2 {[%clk 0:02:15]} 11. Nxc6 {[%clk 0:02:41]}  Bxd1 {[%clk 0:02:10]} 12. Nxd8 {[%clk 0:02:42]}  Bf3 {[%clk 0:02:05]} 13. Rh3 {[%clk 0:02:36]}  Bxg4 {[%clk 0:02:05]} 14. Rh4 {[%clk 0:02:33]}  Bxh5 {[%clk 0:01:53]} 15. Nxe6 {[%clk 0:02:29]} 1-0


[Site "https://www.chess.com"]